Cogmind - Beta 15 @@@ ROGUE MODE // 2025.08.25 @ 21:24:47 Player: Dadrick Result: Destroyed by S-43 Plague with Heavy Machine Gun Performance ------------- Evolutions (9) 4500 Regions Visited (27) 5400 Robots Destroyed (276) 1380 Value Destroyed (10387) 10387 Prototype IDs (64) 1280 Alien Tech Used (0) 0 Bonus (8692) 8692 TOTAL SCORE: 31639 Bonus ------- High Alert Combat Kills 1678 Follower Combat Kills 1121 Aligned with FarCom 300 Met Data Miner 300 Met Imprinter 300 Met Warlord at Base 500 MAIN.C Attacked Warlord 500 Warlord Defense Kills 1732 Met R17 at Cetus 500 Met Warlord at Research 2000 Friendly Fire -239 Cogmind --------- Core Integrity 0/1600 Matter 250/300 Energy 99/100 System Corruption 28% Temperature Cool (0) Movement Core (50) Location -1/Access Parts ------- > --- POWER (3) -------- (None) > --- PROPULSION (8) --- (None) > --- UTILITY (12) ----- (None) > --- WEAPON (2) ------- (None) > --- INVENTORY (5) ---- Coolant Network Advanced Target Analyzer Heavy Autocannon Peak State ------------ > --- POWER ------------ Micro Antimatter Reactor Micro Antimatter Reactor Light Quantum Reactor > --- PROPULSION ------- Armored Medium Treads Biometal Medium Treads Armored Heavy Treads Armored Heavy Treads Armored Heavy Treads > --- UTILITY ---------- Advanced Heat Sink Lightpack 2.0 Advanced Visual Processing Unit Weapon Mount Improved Target Analyzer Advanced Target Analyzer Advanced Weapon Cycler Graphene Brace Improved Remote Force Field Advanced Hacking Suite > --- WEAPON ----------- Enhanced Nova Cannon Gamma Bomb Array > --- INVENTORY -------- Fusion Compressor Improved Fusion Compressor Particle Reactor Particle Reactor Micro Antimatter Reactor Micro Antimatter Reactor Light Quantum Reactor Advanced Treads Medium Treads Medium Treads Advanced Medium Treads Field Propulsion Drive Cooled Nuclear Pulse Thruster Impulse Thruster Impulse Thruster Array Advanced Cryofiber Web Advanced Heat Sink Advanced Heat Sink Advanced Heat Sink Coolant Network Coolant Injector Advanced Target Analyzer Advanced Remote Force Field Advanced Trap Extractor Advanced Trap Extractor Enhanced Nova Cannon KE Penetrator Railgun Railgun Heavy Autocannon Improved Plasma Cutter Vortex Lance [Rating: 210] Favorites ----------- Power Micro Antimatter Reactor Engine Ion Engine Power Core Light Nuclear Core Reactor Micro Antimatter Reactor Propulsion Cooled VTOL Module Treads Armored Heavy Treads Leg Improved Titanium Leg Wheel Wheel Flight Unit Cooled VTOL Module Utility Lightpack 2.0 Device Advanced Heat Sink Storage Lightpack 2.0 Processor Advanced Visual Processing Unit Hackware Advanced Hacking Suite Protection Centrium Medium Armor Plating Weapon Power Sword Energy Gun Medium Laser Energy Cannon Enhanced Nova Cannon Ballistic Gun Heavy Assault Rifle Ballistic Cannon Enhanced Gauss Cannon Launcher Fusion Bomb Launcher Special Weapon Mining Laser Impact Weapon Hammer Slashing Weapon Power Sword Piercing Weapon Vortex Lance Build | -11 -10 -10 -10 -9 -8 -8 -7 -7 -7 -7 -6 -6 -6 -6 -6 -5 -5 -5 -5 -4 -4 -4 -4 -3 -3 -2 -1 ------- Run | Yrd Mat Min Exi Min Mat Sto Fac Low Low Zio Pro Fac Low Low Dat Pro Fac Ext Cet Fac Upp Upp War Pro Res Res Acc Slots Evolved 18 | . . . . . 4 . 2 . . . . 2 . . . . 2 . . 2 . . . . 2 2 2 Power 2 | . . . . . . . . . . . . . . . . . . . . 1 . . . . . . 1 Propulsion 6 | . . . . . 1 . 2 . . . . 1 . . . . . . . 1 . . . . . 1 . Utility 10 | . . . . . 3 . . . . . . 1 . . . . 2 . . . . . . . 2 1 1 Weapon . | . . . . . . . . . . . . . . . . . . . . . . . . . . . . Parts Attached 189 | 7 17 4 1 . 22 22 6 3 . 1 . 8 1 . . 2 4 12 3 6 2 1 8 2 10 7 40 Power 29 | 1 2 1 1 . 2 3 2 . . . . . . . . . . 1 . 1 . . 2 1 1 1 10 Engine 9 | 1 1 1 1 . 1 . . . . . . . . . . . . 1 . 1 . . . 1 . . 1 Core 9 | . 1 . . . 1 3 2 . . . . . . . . . . . . . . . 1 . . . 1 Reactor 11 | . . . . . . . . . . . . . . . . . . . . . . . 1 . 1 1 8 Propulsion 50 | 2 4 1 . . 5 10 3 . . . . 4 . . . . . 3 . 1 . . 3 . 3 1 10 Treads 15 | 2 1 . . . . 7 . . . . . . . . . . . . . . . . . . . . 5 Leg 7 | . 2 1 . . 4 . . . . . . . . . . . . . . . . . . . . . . Wheel 1 | . 1 . . . . . . . . . . . . . . . . . . . . . . . . . . Hover . | . . . . . . . . . . . . . . . . . . . . . . . . . . . . Flight 27 | . . . . . 1 3 3 . . . . 4 . . . . . 3 . 1 . . 3 . 3 1 5 Utility 70 | 2 6 . . . 8 6 1 2 . 1 . 3 . . . 1 3 5 3 3 2 1 3 1 5 3 11 Device 31 | 1 1 . . . 3 1 . 1 . . . 1 . . . 1 1 3 . 1 2 1 2 1 2 1 8 Storage 5 | 1 2 . . . . 1 . . . . . . . . . . . . . . . . . . . 1 . Processor 10 | . . . . . 1 . 1 1 . . . . . . . . . 2 . 2 . . . . . 1 2 Hackware 8 | . . . . . . . . . . . . 2 . . . . 2 . . . . . . . 3 . 1 Protection 16 | . 3 . . . 4 4 . . . 1 . . . . . . . . 3 . . . 1 . . . . Artifact . | . . . . . . . . . . . . . . . . . . . . . . . . . . . . Weapon 40 | 2 5 2 . . 7 3 . 1 . . . 1 1 . . 1 1 3 . 1 . . . . 1 2 9 Energy Gun 1 | 1 . . . . . . . . . . . . . . . . . . . . . . . . . . . Energy Cannon 4 | . . . . . 2 . . . . . . . . . . . . . . . . . . . . . 2 Ballistic Gun 12 | 1 2 1 . . 3 2 . . . . . . . . . . . . . . . . . . . . 3 Ballistic Cannon 9 | . . . . . . . . 1 . . . . 1 . . . 1 1 . 1 . . . . 1 1 2 Launcher 9 | . 1 1 . . 1 1 . . . . . . . . . 1 . 2 . . . . . . . 1 1 Special Weapon 1 | . 1 . . . . . . . . . . . . . . . . . . . . . . . . . . Impact Weapon 1 | . 1 . . . . . . . . . . . . . . . . . . . . . . . . . . Slashing Weapon 2 | . . . . . 1 . . . . . . 1 . . . . . . . . . . . . . . . Piercing Weapon 1 | . . . . . . . . . . . . . . . . . . . . . . . . . . . 1 Special Melee Weapon . | . . . . . . . . . . . . . . . . . . . . . . . . . . . . Unidentified Prototypes 13 | . . . . . 1 1 . . . . . . . . . . . 1 1 . . . 3 . 3 1 2 Parts Lost 70 | . 3 1 . 1 6 1 . . . . . 2 . . . 1 . 3 2 . . . 2 1 4 1 42 Power 13 | . 2 1 . . . . . . . . . . . . . . . 1 1 . . . . 1 . 1 6 Propulsion 21 | . 1 . . . . . . . . . . 1 . . . 1 . 1 . . . . 1 . 1 . 15 Utility 23 | . . . . . 3 1 . . . . . 1 . . . . . 1 . . . . 1 . 3 . 13 Weapon 13 | . . . . 1 3 . . . . . . . . . . . . . 1 . . . . . . . 8 Highest Loss Streak 13 | . 1 1 . 1 3 1 . . . . . 2 . . . 1 . 2 2 . . . 2 1 1 1 13 To Critical Strikes 1 | . . . . . . . . . . . . . . . . . . . . . . . . . . . 1 Average Backups 28 | 1 15 20 19 18 17 17 31 36 40 39 40 39 39 40 40 39 39 38 38 39 40 40 38 37 37 35 29 Power 1 | . . 2 1 1 1 1 . . 1 1 1 1 2 2 2 2 2 1 2 2 2 2 2 3 2 2 3 Propulsion 6 | . 3 7 7 7 7 6 7 8 7 7 7 5 6 6 6 5 5 8 10 9 10 10 8 7 7 6 6 Utility 11 | . 4 4 4 4 3 3 15 18 21 21 21 21 22 22 22 22 21 18 14 16 16 16 15 14 14 16 12 Weapon 7 | . 6 7 6 6 5 6 7 8 9 9 10 9 8 8 8 8 7 7 9 9 9 9 9 10 9 8 6 Tool/Special . | . . . . . . . . . . . . . . . . . . . . . . . . . . . . Unused Backups 99 | . 3 . 1 . 8 3 1 1 . 1 . 3 . . . 1 4 5 4 6 . . 10 . 17 8 23 Power 9 | . 1 . . . 2 . . . . . . . . . . . . . . . . . . . 1 . 5 Propulsion 26 | . 1 . . . 6 3 . . . . . . . . . . 1 . . 2 . . 3 . 3 4 3 Utility 38 | . . . 1 . . . 1 1 . 1 . 1 . . . . 2 3 1 3 . . 4 . 9 1 10 Weapon 18 | . 1 . . . . . . . . . . 2 . . . . 1 2 2 . . . 3 . 2 2 3 Tool/Special 8 | . . . . . . . . . . . . . . . . 1 . . 1 1 . . . . 2 1 2 Average Slot Usage (%) 86 | . 99 99 100 94 89 97 83 83 84 84 84 85 86 86 86 86 87 85 82 82 84 84 83 83 79 77 71 Engine 2 | . 7 10 14 14 3 . . . . . . . . . . . . 1 2 3 5 5 3 . . . . Core 3 | . 6 2 . . 5 9 7 7 7 7 7 6 6 6 6 6 5 3 2 5 5 5 5 4 . . 1 Reactor 2 | . . . . . . . . . . . . . . . . . . . . . . . 1 5 8 7 8 Treads 4 | . 17 . . . . 21 . . . . . . . . . . . . . . . . . . . . 10 Leg 7 | . 10 28 28 28 26 4 . . . . . . . . . . . . . . . . . . . . . Flight 16 | . . . . . . . 37 38 38 38 38 40 40 40 40 40 35 32 29 30 31 31 30 31 23 20 8 Device 9 | . 7 10 14 8 9 17 5 6 7 3 7 2 6 6 6 5 4 2 5 6 5 5 3 4 8 11 14 Storage 7 | . 14 14 14 14 9 9 7 7 7 7 7 6 6 6 6 6 5 5 5 5 5 5 5 5 4 6 5 Processor 7 | . . . . . 8 9 7 7 7 7 7 6 6 6 6 6 5 6 11 10 15 15 15 10 9 9 11 Hackware 4 | . . . . . . . . . . . . 5 6 6 6 6 15 13 5 5 5 5 5 5 10 8 6 Protection 3 | . 6 3 . 5 7 7 1 . . 3 . 3 . . . . 1 4 5 2 . . 1 5 2 1 . Ballistic Gun 7 | . 22 27 28 17 14 15 7 . . . . . . . . . . . . . . . . . . . . Ballistic Cannon 2 | . . . . . . . . 5 7 7 7 6 6 6 6 5 5 4 5 5 5 5 4 5 4 2 1 Slashing Weapon 2 | . . . . . . 1 7 7 7 7 7 6 6 6 6 6 5 5 5 5 5 5 5 5 4 4 1 Peak Build Rating 210 | 7 11 11 12 12 36 55 71 76 77 78 78 88 88 88 89 89 102 116 123 129 128 128 146 147 180 198 210 Average Rating 90 | 5 9 9 10 11 32 33 67 74 76 77 77 85 87 88 88 87 100 107 120 126 126 127 138 146 171 196 184 On Entrance 83 | . 7 11 9 12 11 36 55 71 76 77 78 77 88 88 88 89 86 102 116 121 126 127 127 145 146 180 198 Naked Turns 4 | . . . . . . . . . . . . . . . . . . . . . . . . . . . 4 Heaviest Build 83 | 14 52 53 49 53 71 69 18 21 21 24 24 25 22 22 25 25 28 27 30 37 33 33 41 42 49 57 83 Greatest Support 242 | 40 40 20 20 20 60 60 26 26 26 26 26 31 30 30 30 30 29 35 35 41 34 34 44 44 51 67 242 Greatest Overweight (x) 5 | 1 4 2 2 2 1 2 . . . . . . . . . . . . . . . . . . . 1 5 Average Overweight (x) . | . . 2 2 2 . . . . . . . . . . . . . . . . . . . . . . . Largest Inventory Capacity 40 | 8 20 20 20 20 20 40 40 40 40 40 40 40 40 40 40 40 40 40 40 40 40 40 40 40 40 40 40 Average Capacity 31 | 7 16 20 20 20 20 20 40 40 40 40 40 40 40 40 40 40 40 40 40 40 40 40 40 40 40 40 39 Most Carried 40 | 5 20 20 20 20 20 20 36 40 40 40 40 40 40 40 40 40 40 40 40 40 40 40 40 39 40 40 40 Average Carried 29 | 2 15 20 19 19 19 19 31 36 39 39 40 39 39 40 40 38 39 38 38 39 39 40 39 38 39 39 33 Final Capacity 40 | 8 20 20 20 20 20 40 40 40 40 40 40 40 40 40 40 40 40 40 40 40 40 40 40 40 40 40 5 Final Carried 40 | 5 20 20 20 20 20 19 36 40 40 40 40 39 40 40 40 38 40 40 40 40 40 40 37 38 40 40 5 Class Distribution -------------------- 25% | Hauler-Sprinter 15% | Trapper-Sprinter 13% | Scavenger-Mutant 11% | Mutant 9% | Skirmisher 7% | Trapper-Mutant 4% | Scavenger-Skirmisher 4% | Hacker-Sprinter 3% | Hauler-Scout Dominant Class ---------------- Mutant | -10/Materials Scavenger-Mutant | -10/Mines Scavenger-Mutant | -10/Exiles Scavenger-Mutant | -9/Mines Skirmisher | -8/Materials Scavenger-Skirmisher | -8/Storage Hauler-Scout | -7/Factory Hauler-Sprinter | -7/Lower Caves Hauler-Sprinter | -7/Lower Caves Hauler-Sprinter | -7/Zion Hauler-Sprinter | -6/Proximity Caves Hauler-Sprinter | -6/Factory Hauler-Sprinter | -6/Lower Caves Hauler-Sprinter | -6/Lower Caves Hauler-Sprinter | -6/Data Miner Hauler-Sprinter | -5/Proximity Caves Hauler-Sprinter | -5/Factory Hauler-Sprinter | -5/Extension Hauler-Sprinter | -5/Cetus Hauler-Sprinter | -4/Factory Hauler-Sprinter | -4/Upper Caves Hauler-Scout | -4/Upper Caves Trapper-Scout | -4/Warlord Trapper-Sprinter | -3/Proximity Caves Trapper-Sprinter | -3/Research Trapper-Sprinter | -2/Research Trapper-Mutant | -1/Access Resources | -11 -10 -10 -10 -9 -8 -8 -7 -7 -7 -7 -6 -6 -6 -6 -6 -5 -5 -5 -5 -4 -4 -4 -4 -3 -3 -2 -1 ----------- Run | Yrd Mat Min Exi Min Mat Sto Fac Low Low Zio Pro Fac Low Low Dat Pro Fac Ext Cet Fac Upp Upp War Pro Res Res Acc Matter Collected 8304 | 278 529 112 . 163 1078 1040 130 73 54 . . 189 114 . . 38 291 741 505 74 10 39 918 172 344 264 1148 Remotely . | . . . . . . . . . . . . . . . . . . . . . . . . . . . . Salvage Created 11127 | 106 513 71 . 82 1404 1621 217 82 . . . 320 27 . . 62 364 905 82 390 26 39 454 147 630 145 3440 Parts 590 | 8 31 10 . 12 98 100 12 8 . . . 12 1 . . 8 25 35 1 19 3 4 11 7 14 6 165 Haulers Intercepted 14 | . 2 . . . 2 3 . . . . . 2 . . . . 1 . . . . . . . 2 . 2 Recyclers Shooed 9 | . 1 . . 1 1 . . . . . . . . . . . . . . 1 . . . . 1 . 4 Parts Field Recycled . | . . . . . . . . . . . . . . . . . . . . . . . . . . . . Retrieved Matter . | . . . . . . . . . . . . . . . . . . . . . . . . . . . . Parts Self-Destructed 21 | . . . . . . . . 5 . . . . 3 . . 3 . . . . 2 4 . 4 . . . Prevented 2 | . . . . . . . . . . . . . . . . 2 . . . . . . . . . . . Kills | -11 -10 -10 -10 -9 -8 -8 -7 -7 -7 -7 -6 -6 -6 -6 -6 -5 -5 -5 -5 -4 -4 -4 -4 -3 -3 -2 -1 ------- Run | Yrd Mat Min Exi Min Mat Sto Fac Low Low Zio Pro Fac Low Low Dat Pro Fac Ext Cet Fac Upp Upp War Pro Res Res Acc Combat Hostiles Destroyed 181 | . 9 5 . 5 28 34 . 7 . . . 3 . . . 5 . 9 5 . . . 15 4 2 5 45 Melee 1 | . . . . . . . . . . . . . . . . . . . . . . . . . . . 1 Guns 53 | . 8 . . . 14 27 . . . . . . . . . . . . . . . . . . . . 4 Cannons 64 | . . . . . 3 . . 1 . . . 3 . . . . . 9 5 . . . 6 4 2 2 29 AOE 58 | . 1 5 . 5 11 7 . 6 . . . . . . . 5 . . . . . . 9 . . 3 6 Classes Destroyed 19 | 2 5 . . 1 5 2 . . . . . . 1 . . . . . . . . . 2 . . 1 . Worker 13 | . 1 . . 1 1 1 1 . . . . 1 . . . . 2 1 . 1 . . . . 1 . 2 Builder 21 | . . . . . 6 1 . . . . . . . . . . 2 2 . 3 . . . . . . 7 Tunneler 8 | 2 . . . 2 1 1 1 . . . . . . . . . . 1 . . . . . . . . . Hauler 14 | . 2 . . . 2 3 . . . . . 2 . . . . 1 . . . . . . . 2 . 2 Recycler 19 | 1 1 . . . 3 . 1 . . . . . . . . . 1 3 . 2 . . . . 2 . 5 Minesweeper 3 | . . . . . . . . . . . . . 1 . . . . . . . 1 1 . . . . . Mechanic 1 | . 1 . . . . . . . . . . . . . . . . . . . . . . . . . . Operator 4 | . . . . . . 1 1 . . . . 1 . . . . 1 . . . . . . . . . . Watcher 12 | . . . . . . 1 2 . . . . 1 . . . . 3 1 1 . . . . . 2 . 1 Swarmer 52 | . 3 3 . . 7 5 . 7 . . . 2 . . . 5 . . . . . . 4 1 2 3 10 Grunt 54 | . 6 2 . 4 13 14 . . . . . 1 . . . . . 2 . . . . 6 1 . 1 4 Brawler 5 | . . . . . 1 1 . . . . . . . . . . . 1 . . . . . . . . 2 Duelist 2 | . . . . . 1 . . . . . . . . . . . . . . . . . . . . . 1 Protector 2 | . . . . . . . . . . . . . . . . . . . . . . . 2 . . . . Sentry 29 | . . . . . 5 14 . . . . . . . . . . . 6 . . . . . . . . 4 Hunter 7 | . . . . . 1 . . . . . . . . . . . . . . . . . 1 . . . 5 Programmer 23 | . . . . . . . . . . . . . . . . . . . . . . . 2 2 . . 19 Cetus Guard 5 | . . . . . . . . . . . . . . . . . . . 5 . . . . . . . . Executioner 1 | . . . . . . . . . . . . . . . . . . . . . . . . . . 1 . Assembled 1 | . . . . 1 . . . . . . . . . . . . . . . . . . . . . . . Savage 1 | . . . . . . . . . . . . . . . . . . 1 . . . . . . . . . Best Kill Streak 11 | 3 3 3 . 7 10 6 3 4 . . . 3 1 . . 5 2 3 2 2 1 1 10 11 2 3 11 Combat Bots Only 11 | . 3 3 . 4 6 6 . 4 . . . 3 . . . 5 . 2 2 . . . 10 11 2 3 7 Max Kills in Single Turn 4 | 1 2 2 . 2 4 2 1 3 . . . 1 1 . . 3 1 1 1 1 1 1 2 1 1 2 3 Gunslinging 1 | . 1 . . . . 1 . . . . . . . . . . . . . . . . . . . . . Exploded 3 | . 1 2 . 2 3 2 . 3 . . . . . . . 3 . . . . . . 2 . . 2 3 Melee 1 | . . . . . . . . . . . . . . . . . . . . . . . . . . . 1 Uniques/NPCs Destroyed . | . . . . . . . . . . . . . . . . . . . . . . . . . . . . Combat | -11 -10 -10 -10 -9 -8 -8 -7 -7 -7 -7 -6 -6 -6 -6 -6 -5 -5 -5 -5 -4 -4 -4 -4 -3 -3 -2 -1 -------- Run | Yrd Mat Min Exi Min Mat Sto Fac Low Low Zio Pro Fac Low Low Dat Pro Fac Ext Cet Fac Upp Upp War Pro Res Res Acc Hostile Shots Fired 1358 | . 76 13 . 22 122 206 2 12 . . 9 20 . . . 9 3 41 39 2 . . 29 23 9 27 694 Missed 493 | . 19 4 . 6 35 60 2 6 . . 5 9 . . . 2 2 16 17 1 . . 12 8 5 20 264 Hits 865 | . 57 9 . 16 87 146 . 6 . . 4 11 . . . 7 1 25 22 1 . . 17 15 4 7 430 Melee 5 | . . . . . 1 1 . . . . . . . . . . . . . . . . . . . . 3 Projectile 860 | . 57 9 . 16 86 145 . 6 . . 4 11 . . . 7 1 25 22 1 . . 17 15 4 7 427 AOE 1 | . . . . . . . . . . . . . . . . . . . . . . . . . . . 1 Critical Strikes 49 | . 3 . . . 3 7 . . . . . 1 . . . . . 1 5 . . . . 2 . 1 26 Actively Blocked 21 | . . . . . . . . . . . . . . . . . . . . . . . . . . . 21 Part Disruptions 2 | . . . . . . . . . . . . . . . . . . . . . . . . . . . 2 Damage Taken 16529 | . 633 104 . 240 1247 1977 . 83 . . 34 169 . . . 111 16 623 601 22 . . 305 346 174 156 9688 Core 2521 | . 78 24 . 67 174 234 . 26 . . . 33 . . . . 16 172 58 . . . 19 . . . 1620 Absorbed by Shields 550 | . . . . . . 136 . . . . . . . . . . . . . . . . 117 . . 46 251 Reduced by Siege Mode 335 | . . . . . . . . . . . . . . . . . . . . . . . . . . . 335 Redirected to Shielding 16 | . 16 . . . . . . . . . . . . . . . . . . . . . . . . . . Regen/Repaired (Parts) 331 | . . . . . . 97 . . . 186 . . . . . . . . . . . . 20 . 17 11 . Core Remaining (%) 80 | 100 . . . 32 . 25 . . . . 96 . . . . 96 . . 75 . . . . 98 100 100 . Volleys Fired 863 | 8 68 5 . 12 108 114 . 7 . . 4 19 . . . 11 14 74 65 2 . 1 94 28 22 19 188 Largest 2 | 2 2 1 . 1 2 2 . 1 . . 1 1 . . . 1 1 1 1 1 . 1 1 1 1 1 2 Hottest 136 | 70 100 30 . 30 136 46 . 40 . . 40 40 . . . 40 47 47 47 47 . 47 47 47 47 58 120 Shots Fired 1118 | 16 130 5 . 12 190 214 . 7 . . 4 19 . . . 11 15 74 65 2 . 1 94 28 22 19 190 Gun 497 | 16 126 . . . 141 201 . . . . . . . . . . . . . . . . . . . . 13 Cannon 530 | . . . . . 31 . . 4 . . 4 19 . . . 7 15 66 65 2 . 1 83 28 22 17 166 Launcher 90 | . 3 5 . 12 18 13 . 3 . . . . . . . 4 . 8 . . . . 11 . . 2 11 Special 1 | . 1 . . . . . . . . . . . . . . . . . . . . . . . . . . Kinetic 845 | 8 114 . . . 141 201 . 4 . . 4 19 . . . 7 15 66 65 2 . 1 83 28 22 17 48 Thermal 183 | 8 13 . . . 31 . . . . . . . . . . . . . . . . . . . . . 131 Explosive 78 | . 3 5 . 12 18 13 . 3 . . . . . . . 4 . 2 . . . . 11 . . 2 5 Electromagnetic 12 | . . . . . . . . . . . . . . . . . . 6 . . . . . . . . 6 Robot Hit Streak 21 | 4 9 10 . 2 9 8 . 1 . . . 4 . . . 1 1 9 6 . . . 9 14 1 5 21 Robot Miss Streak 5 | 1 4 . . 1 4 4 . 2 . . . 1 . . . 2 3 5 2 1 . . 5 1 2 3 4 Penetration Max 1 | . . . . . . . . . . . . . . . . . . 1 1 . . . 1 . . . 1 Secondary Targets 12 | . 3 . . . 2 6 . . . . . . . . . . . . . . . . . . . . 1 Max Gunslinging Chain 1 | . 1 . . . 1 1 . . . . . . . . . . . . . . . . . . . . 1 Shots Hit Robots 752 | 9 80 1 . 4 124 131 6 1 . . . 22 4 . . 2 20 51 38 9 1 1 41 21 21 13 152 Core Hits 506 | 4 31 8 . 15 81 84 4 10 . . . 8 1 . . 8 7 31 17 2 . 1 65 8 9 10 102 Critical Kills 5 | 1 . . . . . 1 . . . . . . . . . . . . . . . . . . . . 3 Critical Parts Destroyed 1 | . . . . . . 1 . . . . . . . . . . . . . . . . . . . . . Critical Strikes 33 | 1 . . . . . 2 . . . . . 1 . . . . 1 5 10 . . . 2 2 4 . 5 Meltdown 2 | . . . . . . . . . . . . . . . . . . . . . . . . . . . 2 Destroy 4 | 1 . . . . . 2 . . . . . . . . . . . . . . . . . . . . 1 Blast 22 | . . . . . . . . . . . . . . . . . . 5 10 . . . 2 2 3 . . Sever 3 | . . . . . . . . . . . . 1 . . . . 1 . . . . . . . 1 . . Sunder 2 | . . . . . . . . . . . . . . . . . . . . . . . . . . . 2 Melee Attacks 309 | . 3 . . . 6 6 23 12 . 1 16 50 4 5 . 7 41 9 . 18 1 3 . 20 35 11 38 Impact 3 | . 3 . . . . . . . . . . . . . . . . . . . . . . . . . . Slashing 294 | . . . . . 6 6 23 12 . 1 16 50 4 5 . 7 41 9 . 18 1 3 . 20 35 11 26 Piercing . | . . . . . . . . . . . . . . . . . . . . . . . . . . . . Entropic 12 | . . . . . . . . . . . . . . . . . . . . . . . . . . . 12 Sneak Attacks 46 | . . . . . 3 1 5 . . . . 5 1 . . . 9 3 . 7 1 1 . . 5 . 5 Combat Hostiles . | . . . . . . . . . . . . . . . . . . . . . . . . . . . . Follow-up Attacks . | . . . . . . . . . . . . . . . . . . . . . . . . . . . . Damage Inflicted 33725 | 107 994 279 . 660 3314 3053 443 399 . . . 1030 231 . . 419 1231 2649 1552 777 97 104 3730 836 1246 878 9696 Guns 4314 | 107 847 . . . 1176 1929 . . . . . . . . . . . . . . . . . . . . 255 Cannons 13423 | . . . . . 407 . . 27 . . . 202 . . . . 78 1872 1552 . . . 1560 836 180 472 6237 Explosions 9136 | . 147 279 . 660 1417 1050 . 372 . . . . . . . 388 . 270 . . . . 2170 . . 301 2082 Melee 6852 | . . . . . 314 74 443 . . . . 828 231 . . 31 1153 507 . 777 97 104 . . 1066 105 1122 Ramming . | . . . . . . . . . . . . . . . . . . . . . . . . . . . . Kinetic 12243 | 31 749 . . . 1176 1929 . 27 . . . 202 . . . . 78 1872 1552 . . . 1560 836 180 472 1579 Thermal 5546 | 76 98 . . . 407 . . . . . . . . . . . . 36 . . . . . . . . 4929 Explosive 8347 | . 147 279 . 660 1417 1050 . 372 . . . . . . . 388 . 135 . . . . 2170 . . 301 1428 Electromagnetic 737 | . . . . . . . . . . . . . . . . . . 99 . . . . . . . . 638 Impact . | . . . . . . . . . . . . . . . . . . . . . . . . . . . . Slashing 5999 | . . . . . 314 74 443 . . . . 828 231 . . 31 1153 507 . 777 97 104 . . 1066 105 269 Piercing . | . . . . . . . . . . . . . . . . . . . . . . . . . . . . Entropic 853 | . . . . . . . . . . . . . . . . . . . . . . . . . . . 853 Highest Corruption 28 | . . . . . . . . . . . . . . . . . 2 2 . 1 1 1 1 2 . . 28 Average Corruption 12 | . . . . . . . . . . . . . . . . . 2 1 . 1 1 1 1 1 . . 18 Corruption Purged 3 | . . . . . . . . . . . . . . . . . . 3 . . . . . . . . . Corruption Blocked . | . . . . . . . . . . . . . . . . . . . . . . . . . . . . Effects 95 | . . . . . . . . . . . . . . . . . 3 1 . . 1 . 1 6 . . 83 Message Errors 22 | . . . . . . . . . . . . . . . . . . 1 . . 1 . 1 1 . . 18 Matter Fused 18 | . . . . . . . . . . . . . . . . . 1 . . . . . . 1 . . 16 Heat Flow Errors 13 | . . . . . . . . . . . . . . . . . . . . . . . . 1 . . 12 Energy Discharges 13 | . . . . . . . . . . . . . . . . . 1 . . . . . . . . . 12 Parts Rejected 3 | . . . . . . . . . . . . . . . . . . . . . . . . . . . 3 Data Loss (minor) 10 | . . . . . . . . . . . . . . . . . . . . . . . . 3 . . 7 Data Loss (major) 2 | . . . . . . . . . . . . . . . . . . . . . . . . . . . 2 Misfires 2 | . . . . . . . . . . . . . . . . . 1 . . . . . . . . . 1 Alerts 1 | . . . . . . . . . . . . . . . . . . . . . . . . . . . 1 Misdirections 5 | . . . . . . . . . . . . . . . . . . . . . . . . . . . 5 Weapon Failures 6 | . . . . . . . . . . . . . . . . . . . . . . . . . . . 6 Overload Shots . | . . . . . . . . . . . . . . . . . . . . . . . . . . . . Overflow Damage 1942 | . . 10 . . 27 18 74 . . . . 47 20 . . 17 252 126 . 313 57 . 31 . 95 5 850 Projectiles 402 | . . . . . . . . . . . . . . . . . 35 . . . . . 31 . 7 5 324 Explosions 152 | . . 10 . . 27 18 . . . . . . . . . 16 . 12 . . . . . . . . 69 Melee 1388 | . . . . . . . 74 . . . . 47 20 . . 1 217 114 . 313 57 . . . 88 . 457 Knockbacks 19 | . . . . . . . . . . . . 3 . . . . 1 2 . . . . 3 6 . 1 3 Impact . | . . . . . . . . . . . . . . . . . . . . . . . . . . . . Kinetic 18 | . . . . . . . . . . . . 3 . . . . 1 2 . . . . 3 6 . 1 2 Secondary 1 | . . . . . . . . . . . . . . . . . . . . . . . . . . . 1 Self-Inflicted Damage 121 | . . 10 . 32 26 . . . . . . . . . . . . 20 . . . . 22 . . . 11 Shots 6 | . . 1 . 1 1 . . . . . . . . . . . . 1 . . . . 1 . . . 1 Rammed . | . . . . . . . . . . . . . . . . . . . . . . . . . . . . Targets Rammed . | . . . . . . . . . . . . . . . . . . . . . . . . . . . . Kicked . | . . . . . . . . . . . . . . . . . . . . . . . . . . . . Crushed . | . . . . . . . . . . . . . . . . . . . . . . . . . . . . Highest Temperature 575 | 70 244 2 . 7 162 72 11 . . 302 20 139 34 34 38 58 64 84 . . . . 125 258 . 16 575 Average Temperature 50 | 32 51 2 . 2 35 32 5 . . 137 14 52 12 14 21 19 11 25 . . . . 26 101 . 9 113 Received Heat Transfer 2172 | . 291 36 . 48 522 802 . . . . 12 27 . . . . . 81 18 . . . 17 . . 9 309 Effects 19 | . . . . . . . . . . 1 . . . . . . . . . . . . . 3 . . 15 Shutdowns 7 | . . . . . . . . . . . . . . . . . . . . . . . . . . . 7 Energy Bleed 2 | . . . . . . . . . . 1 . . . . . . . . . . . . . 1 . . . Interference 6 | . . . . . . . . . . . . . . . . . . . . . . . . 2 . . 4 Matter Decay 1 | . . . . . . . . . . . . . . . . . . . . . . . . . . . 1 Short Circuit 1 | . . . . . . . . . . . . . . . . . . . . . . . . . . . 1 Damage (minor) 1 | . . . . . . . . . . . . . . . . . . . . . . . . . . . 1 Damage (major) 1 | . . . . . . . . . . . . . . . . . . . . . . . . . . . 1 Siege Activations 2 | . . . . . . . . . . . . . . . . . . . . . . . . . . . 2 Total Turns 65 | . . . . . . . . . . . . . . . . . . . . . . . . . . . 65 Longest Duration 55 | . . . . . . . . . . . . . . . . . . . . . . . . . . . 55 Martial Activations . | . . . . . . . . . . . . . . . . . . . . . . . . . . . . Shielding Activations . | . . . . . . . . . . . . . . . . . . . . . . . . . . . . Robots Disrupted . | . . . . . . . . . . . . . . . . . . . . . . . . . . . . Combat Hostiles . | . . . . . . . . . . . . . . . . . . . . . . . . . . . . Robots Corrupted 4 | . . . . . . . . . . . . . . . . . . . . . . . . . . . 4 Combat Hostiles 3 | . . . . . . . . . . . . . . . . . . . . . . . . . . . 3 Parts Fried 6 | . . . . . . . . . . . . . . . . . 2 . . . . . . . . . 4 Impact Corruptions 1 | . . . . . . . . . . . . . . . . . . . . . . . . . . . 1 Robots Melted 2 | . . . . . . . . . . . . . . . . . . . . . . . . . . . 2 Combat Hostiles 2 | . . . . . . . . . . . . . . . . . . . . . . . . . . . 2 Parts Melted 12 | . . . . . . . . . . . . . . . . . . . . . . . . . . 1 11 Heat Transferred 5317 | 222 296 . . . 740 . . . . . . . . . . . . 50 . . . . . . . . 4009 Parts Sabotaged . | . . . . . . . . . . . . . . . . . . . . . . . . . . . . Parts Stolen . | . . . . . . . . . . . . . . . . . . . . . . . . . . . . Parts Stripped . | . . . . . . . . . . . . . . . . . . . . . . . . . . . . Power Chain Reactions 1 | . . . . . . . . . . . . . . . . . . . . . . . . . . . 1 Alert | -11 -10 -10 -10 -9 -8 -8 -7 -7 -7 -7 -6 -6 -6 -6 -6 -5 -5 -5 -5 -4 -4 -4 -4 -3 -3 -2 -1 ------- Run | Yrd Mat Min Exi Min Mat Sto Fac Low Low Zio Pro Fac Low Low Dat Pro Fac Ext Cet Fac Upp Upp War Pro Res Res Acc Maximum Alert Level 5 | . . . . . 2 2 1 . . . . . . . . . 2 1 1 . . . . . . 1 5 Low Security (%) 56 | 100 100 100 . 100 18 38 . . . . . 100 . . . . . 59 61 100 . . . . 100 98 23 Level 1 25 | . . . . . 63 44 100 . . . . . . . . . 66 40 38 . . . . . . 2 3 Level 2 6 | . . . . . 18 17 . . . . . . . . . . 33 . . . . . . . . . 4 Level 3 3 | . . . . . . . . . . . . . . . . . . . . . . . . . . . 25 Level 4 6 | . . . . . . . . . . . . . . . . . . . . . . . . . . . 40 Level 5 . | . . . . . . . . . . . . . . . . . . . . . . . . . . . 2 High Security . | . . . . . . . . . . . . . . . . . . . . . . . . . . . . Max Security . | . . . . . . . . . . . . . . . . . . . . . . . . . . . . Peak Influence 1711 | 10 109 86 . 121 463 627 382 . . . . 95 . . . . 518 381 266 97 . . . . 71 201 1711 Initial 513 | . . . . . . 113 277 . . . . . . . . . 513 142 148 60 . . . . . . 98 Average 256 | 1 25 13 . 21 298 254 288 . . . . 34 . . . . 334 190 174 70 . . . . 22 75 823 Influence Increases 10379 | 15 342 152 . 145 1066 1083 367 160 . . . 372 5 . . 125 759 771 299 152 5 5 970 100 351 376 2759 Destroy 0b10 Robot/C 4000 | . 180 100 . 80 640 680 . 140 . . . 60 . . . 100 . 320 160 . . . 420 80 40 100 900 Destroy 0b10 Robot/NC 525 | 15 25 . . 15 75 40 30 . . . . 25 5 . . . 50 65 10 30 5 5 10 . 35 . 85 Destroy Leader 736 | . 44 20 . . 166 198 4 20 . . . 6 . . . 10 8 36 . . . . . 20 8 . 196 Allied During Kill 275 | . . . . . 16 . . . . . . . . . . . . 112 72 . . . 75 . . . . Trap Triggered on 0b10 30 | . . . . . . . . . . . . . . . . . . . . . . . . . . . 30 Successful Hack 484 | . 35 . . . 28 27 94 . . . . 81 . . . . 39 19 7 18 . . . . 106 . 30 Select Force Hacks 180 | . . . . . . . 30 . . . . 90 . . . . . . . 60 . . . . . . . Disable Machine 225 | . 15 . . . 15 45 15 . . . . 15 . . . . 30 60 . 15 . . . . . . 15 Destroy Structure 984 | . 13 32 . 50 111 63 14 . . . . 35 . . . . 62 84 50 14 . . . . 42 111 303 Advance Influence 450 | . . . . . . . . . . . . . . . . . 450 . . . . . . . . . . Partial Spotted 345 | . . . . . . 15 45 . . . . 30 . . . . 90 30 . 15 . . . . 45 15 60 Lose Combat Pursuer 2145 | . 30 . . . 15 15 135 . . . . 30 . . . 15 30 45 . . . . 465 . 75 150 1140 Influence Decreases 8710 | 15 342 90 62 145 798 739 665 227 88 159 . 337 40 . . 25 567 798 455 169 95 7 292 778 351 212 1254 Entered New Map 2024 | . . . 62 . . 155 335 117 48 159 . . 14 . . . 37 150 117 49 35 2 . 678 . . 66 Time Decay 5097 | 15 312 90 . 135 528 574 310 110 40 . . 317 26 . . 25 380 458 198 120 60 5 192 90 282 212 618 Search Patrol Dispatched 300 | . . . . . . . . . . . . . . . . . 150 . . . . . . . . . 150 Lost Part 669 | . 30 . . 10 60 10 . . . . . 20 . . . . . 30 20 . . . 20 10 39 . 420 Lost Ally 470 | . . . . . 60 . 20 . . . . . . . . . . 160 120 . . . 80 . 30 . . Purge Threat 150 | . . . . . 150 . . . . . . . . . . . . . . . . . . . . . . Squads Dispatched 74 | . 1 . . . 6 6 7 . . . . 8 . . . . 5 2 . 3 . . . . 8 1 27 Investigation 20 | . . . . . . 2 3 . . . . 6 . . . . 2 1 . 2 . . . . 1 1 2 Extermination 14 | . . . . . . . 2 . . . . 2 . . . . 2 . . 1 . . . . 1 . 6 Reinforcement 23 | . 1 . . . 4 1 2 . . . . . . . . . 1 1 . . . . . . 6 . 7 Assault 9 | . . . . . . 1 . . . . . . . . . . . . . . . . . . . . 8 Garrison 8 | . . . . . 2 2 . . . . . . . . . . . . . . . . . . . . 4 Intercept . | . . . . . . . . . . . . . . . . . . . . . . . . . . . . Searches Triggered 2 | . . . . . . . . . . . . . . . . . 1 . . . . . . . . . 1 Data Miner Redirects 7 | . . . . . . . . . . . . . . . . . . . . . . . . . . . 7 Construction Impeded 4 | . . . . . 2 . . . . . . . . . . . . 1 . . . . . . . . 1 Haulers Reinforced 7 | . . . . . . . . . . . . . . . . . 1 . . . . . . . 3 . 3 Active Scanning Responses . | . . . . . . . . . . . . . . . . . . . . . . . . . . . . Cargo Convoy Interrupts 1 | . . . . . . . . . . . . . . . . . 1 . . . . . . . . . . Stealth | -11 -10 -10 -10 -9 -8 -8 -7 -7 -7 -7 -6 -6 -6 -6 -6 -5 -5 -5 -5 -4 -4 -4 -4 -3 -3 -2 -1 --------- Run | Yrd Mat Min Exi Min Mat Sto Fac Low Low Zio Pro Fac Low Low Dat Pro Fac Ext Cet Fac Upp Upp War Pro Res Res Acc Distress Signals 43 | . 3 . . . 8 2 . . . . . . . . . 1 1 3 1 . . . 1 . 10 6 7 Communications Jammed 17 | . . . . . . . . . . . . . . . . . 8 . . . . . . . 4 . 5 Distress Signals 17 | . . . . . . . . . . . . . . . . . 8 . . . . . . . 4 . 5 Times Spotted 490 | . 23 5 . 6 59 46 17 6 . . 1 9 . . . 9 12 24 9 4 . . 64 5 13 30 148 Peak Tracking Total 29 | . 4 3 . 2 7 6 6 4 . . 1 4 . . . 6 3 10 5 3 . . 11 3 4 8 29 Tactical Retreats 54 | . 2 . . 1 1 1 4 . . . . 2 . . . 1 2 2 . . . . 9 . 4 7 18 Traps | -11 -10 -10 -10 -9 -8 -8 -7 -7 -7 -7 -6 -6 -6 -6 -6 -5 -5 -5 -5 -4 -4 -4 -4 -3 -3 -2 -1 ------- Run | Yrd Mat Min Exi Min Mat Sto Fac Low Low Zio Pro Fac Low Low Dat Pro Fac Ext Cet Fac Upp Upp War Pro Res Res Acc Traps Triggered 17 | . . . . . 1 5 1 . . . . 3 . . . . 2 4 . . . . . . 1 . . Indirectly 2 | . . . . . . . . . . . . . . . . . . 2 . . . . . . . . . Trap Hack Attempts . | . . . . . . . . . . . . . . . . . . . . . . . . . . . . Triggered . | . . . . . . . . . . . . . . . . . . . . . . . . . . . . Disarmed 4 | . 4 . . . . . . . . . . . . . . . . . . . . . . . . . . Reprogrammed . | . . . . . . . . . . . . . . . . . . . . . . . . . . . . Reused 3 | . . . . . . . . . . . . . . . . . . . . . . . . . . . 3 Traps Extracted 1 | . . . . . . . . . . . . . . . . . . . . . 1 . . . . . . Installed 3 | . . . . . . . . . . . . . . . . . . . . . . . . . . . 3 Triggered 3 | . . . . . . . . . . . . . . . . . . . . . . . . . . . 3 Most Traps Carried 15 | . . . . . . . . . . . . . . . . . . . . . 3 15 15 15 15 15 15 Machines | -11 -10 -10 -10 -9 -8 -8 -7 -7 -7 -7 -6 -6 -6 -6 -6 -5 -5 -5 -5 -4 -4 -4 -4 -3 -3 -2 -1 ---------- Run | Yrd Mat Min Exi Min Mat Sto Fac Low Low Zio Pro Fac Low Low Dat Pro Fac Ext Cet Fac Upp Upp War Pro Res Res Acc Machines Disabled 16 | . 1 . . . 1 3 1 . . . . 1 . . . . 2 4 . 1 . . 1 . . . 1 Max in Single Turn 2 | . 1 . . . 1 2 1 . . . . 1 . . . . 1 2 . 1 . . 1 . . . 1 Garrison Access 11 | . . . . . 1 1 1 . . . . 2 . . . . . . . . . . . . 2 3 1 Energy Cycler 1 | . . . . . . . . . . . . . . . . . . 1 . . . . . . . . . Machines Repaired . | . . . . . . . . . . . . . . . . . . . . . . . . . . . . Machines Dismantled . | . . . . . . . . . . . . . . . . . . . . . . . . . . . . Machines Sabotaged . | . . . . . . . . . . . . . . . . . . . . . . . . . . . . Overloaded Fab Kills . | . . . . . . . . . . . . . . . . . . . . . . . . . . . . Hacking | -11 -10 -10 -10 -9 -8 -8 -7 -7 -7 -7 -6 -6 -6 -6 -6 -5 -5 -5 -5 -4 -4 -4 -4 -3 -3 -2 -1 --------- Run | Yrd Mat Min Exi Min Mat Sto Fac Low Low Zio Pro Fac Low Low Dat Pro Fac Ext Cet Fac Upp Upp War Pro Res Res Acc Machines Accessed 130 | . 9 . 2 1 11 9 18 1 . . . 22 . 1 4 . 9 5 1 3 . . 4 . 16 5 9 Terminals 76 | . 7 . . 1 10 6 8 . . . . 15 . . . . 6 5 1 . . . . . 10 1 6 Fabricators 7 | . . . . . . . 3 . . . . 2 . . . . 1 . . . . . . . 1 . . Repair Stations 3 | . . . . . . 1 . . . . . . . . . . . . . . . . . . 1 . 1 Recycling Units 16 | . 2 . . . . 1 4 . . . . 3 . . . . 2 . . 2 . . . . 1 . 1 Scanalyzers 2 | . . . . . . . . . . . . . . . . . . . . 1 . . . . . 1 . Garrison Access 14 | . . . . . 1 1 3 . . . . 2 . . . . . . . . . . . . 3 3 1 Total Hacks 352 | . 33 . 2 3 34 27 43 1 . . . 51 . 1 31 . 22 13 2 3 . . 8 . 47 8 23 Successful 194 | . 17 . 2 . 14 13 22 1 . . . 37 . 1 31 . 10 8 1 3 . . 8 . 19 2 5 Failed 158 | . 16 . . 3 20 14 21 . . . . 14 . . . . 12 5 1 . . . . . 28 6 18 Catastrophic 22 | . 1 . . 1 . 1 4 . . . . 1 . . . . 2 . 1 . . . . . 3 2 6 Database Lockouts . | . . . . . . . . . . . . . . . . . . . . . . . . . . . . Manual 173 | . 27 . 1 3 24 17 20 . . . . 30 . . . . 6 4 . 2 . . 1 . 27 1 10 Terminals 233 | . 29 . . 3 31 22 26 . . . . 39 . . . . 16 13 2 . . . . . 36 1 15 Fabricators 11 | . . . . . . . 3 . . . . 6 . . . . 1 . . . . . . . 1 . . Repair Stations 9 | . . . . . . 2 . . . . . . . . . . . . . . . . . . 4 . 3 Recycling Units 28 | . 4 . . . . 1 6 . . . . 4 . . . . 5 . . 2 . . . . 2 . 4 Scanalyzers 3 | . . . . . . . . . . . . . . . . . . . . 1 . . . . . 2 . Garrison Access 25 | . . . . . 3 2 8 . . . . 2 . . . . . . . . . . . . 4 5 1 Terminal Hacks 98 | . 4 . 2 . 5 4 5 1 . . . 13 . 1 31 . 6 6 1 . . . 8 . 9 . 2 Record 20 | . . . 1 . . . . . . . . . . 1 11 . . . . . . . 7 . . . . Part Schematic 18 | . . . . . . 1 1 . . . . 2 . . 11 . . 2 . . . . . . 1 . . Robot Schematic 6 | . . . . . . . . . . . . . . . 6 . . . . . . . . . . . . Robot Analysis 2 | . 1 . . . . . . . . . . 1 . . . . . . . . . . . . . . . Prototype ID Bank 9 | . . . . . . 1 . . . . . 1 . . 3 . 1 1 . . . . . . 2 . . Open Door 4 | . . . . . . 1 . 1 . . . . . . . . . . 1 . . . 1 . . . . Level Access Points 1 | . . . . . . . . . . . . . . . . . . . . . . . . . 1 . . Branch Access Points 4 | . . . . . . . 1 . . . . 1 . . . . 1 . . . . . . . 1 . . Emergency Access Points 1 | . . . . . . . . . . . . . . . . . . . . . . . . . . . 1 Terminal Index 5 | . 1 . . . 1 . . . . . . . . . . . 1 . . . . . . . 1 . 1 Alert Level 3 | . . . . . 1 . 1 . . . . . . . . . . 1 . . . . . . . . . Unreport Threat 1 | . . . . . 1 . . . . . . . . . . . . . . . . . . . . . . Locate Traps 6 | . 1 . . . . . 1 . . . . 2 . . . . 1 . . . . . . . 1 . . Disarm Traps 1 | . 1 . . . . . . . . . . . . . . . . . . . . . . . . . . Recall Investigation 1 | . . . . . . . . . . . . . . . . . . 1 . . . . . . . . . Recall Extermination 1 | . . . . . . . . . . . . 1 . . . . . . . . . . . . . . . Recall Reinforcements 1 | . . . . . 1 . . . . . . . . . . . . . . . . . . . . . . Hauler Manifests 4 | . . . . . 1 . 1 . . . . 2 . . . . . . . . . . . . . . . Registered Components 1 | . . . . . . . . . . . . . . . . . . . . . . . . . 1 . . Registered Prototypes 1 | . . . . . . . . . . . . 1 . . . . . . . . . . . . . . . Zone Layout 7 | . . . . . . 1 . . . . . 2 . . . . 2 1 . . . . . . 1 . . Proto ID Catalog 1 | . . . 1 . . . . . . . . . . . . . . . . . . . . . . . . Fabricator Hacks 5 | . . . . . . . 1 . . . . 3 . . . . 1 . . . . . . . . . . Network Status 2 | . . . . . . . 1 . . . . 1 . . . . . . . . . . . . . . . Load Schematic 1 | . . . . . . . . . . . . 1 . . . . . . . . . . . . . . . Build 2 | . . . . . . . . . . . . 1 . . . . 1 . . . . . . . . . . Repair Station Hacks 2 | . . . . . . 2 . . . . . . . . . . . . . . . . . . . . . Scan Component 1 | . . . . . . 1 . . . . . . . . . . . . . . . . . . . . . Repair 1 | . . . . . . 1 . . . . . . . . . . . . . . . . . . . . . Recycling Unit Hacks 11 | . 2 . . . . 1 4 . . . . 1 . . . . 2 . . . . . . . 1 . . Report Inventory 10 | . 1 . . . . 1 4 . . . . 1 . . . . 2 . . . . . . . 1 . . Retrieve Components 1 | . 1 . . . . . . . . . . . . . . . . . . . . . . . . . . Scanalyzer 1 | . . . . . . . . . . . . . . . . . . . . 1 . . . . . . . Insert Component 1 | . . . . . . . . . . . . . . . . . . . . 1 . . . . . . . Garrison Access Hacks 10 | . . . . . 1 1 1 . . . . 2 . . . . . . . . . . . . 2 2 1 Seal Access 10 | . . . . . 1 1 1 . . . . 2 . . . . . . . . . . . . 2 2 1 Unauthorized Hacks 67 | . 11 . . . 8 5 11 . . . . 18 . . . . 1 2 . 2 . . . . 7 . 2 Terminals 55 | . 11 . . . 8 5 8 . . . . 13 . . . . 1 2 . . . . . . 5 . 2 Assimilate 9 | . 2 . . . 3 . 1 . . . . . . . . . . . . . . . . . 3 . . Botnet 34 | . 3 . . . 5 5 7 . . . . 7 . . . . 1 2 . . . . . . 2 . 2 Operators 1 | . 1 . . . . . . . . . . . . . . . . . . . . . . . . . . Skim 11 | . 5 . . . . . . . . . . 6 . . . . . . . . . . . . . . . Fabricators 4 | . . . . . . . 2 . . . . 2 . . . . . . . . . . . . . . . Prioritize 1 | . . . . . . . . . . . . 1 . . . . . . . . . . . . . . . Liberate 3 | . . . . . . . 2 . . . . 1 . . . . . . . . . . . . . . . Repair Stations 1 | . . . . . . . . . . . . . . . . . . . . . . . . . 1 . . Patch 1 | . . . . . . . . . . . . . . . . . . . . . . . . . 1 . . Recycling Units 7 | . . . . . . . 1 . . . . 3 . . . . . . . 2 . . . . 1 . . Mask 1 | . . . . . . . . . . . . . . . . . . . . . . . . . 1 . . Tunnel 6 | . . . . . . . 1 . . . . 3 . . . . . . . 2 . . . . . . . Scanalyzers . | . . . . . . . . . . . . . . . . . . . . . . . . . . . . Garrison Access . | . . . . . . . . . . . . . . . . . . . . . . . . . . . . Data Cores Recovered 2 | . . . . . . . 1 . . . . 1 . . . . . . . . . . . . . . . Used . | . . . . . . . . . . . . . . . . . . . . . . . . . . . . Hacking Detections 92 | . 8 . . 1 11 9 14 . . . . 13 . . . . 8 3 1 . . . . . 13 3 8 Full Trace Events 9 | . . . . 1 . . 1 . . . . 3 . . . . 1 1 . . . . . . . . 2 Feedback Events 2 | . . . . . . . . . . . . 1 . . . . . . . . . . . . . . 1 Hackware Fried 2 | . . . . . . . . . . . . 1 . . . . . . . . . . . . . . 1 Feedback Blocked . | . . . . . . . . . . . . . . . . . . . . . . . . . . . . Robot Schematics Acquired 10 | . . . . . . . . . . 4 . . . . 6 . . . . . . . . . . . . Robots Built . | . . . . . . . . . . . . . . . . . . . . . . . . . . . . Authchips . | . . . . . . . . . . . . . . . . . . . . . . . . . . . . Time . | . . . . . . . . . . . . . . . . . . . . . . . . . . . . Total Robot Build Rating . | . . . . . . . . . . . . . . . . . . . . . . . . . . . . Part Schematics Acquired 32 | . . . . . . 1 1 . . 14 . 2 . . 11 . . 2 . . . . . . 1 . . Parts Built 3 | . . . . . . . . . . . . 1 . . . . 2 . . . . . . . . . . Authchips . | . . . . . . . . . . . . . . . . . . . . . . . . . . . . Time 125 | . . . . . . . . . . . . 67 . . . . 58 . . . . . . . . . . Total Part Build Rating 18 | . . . . . . . . . . . . 4 . . . . 14 . . . . . . . . . . Parts Repaired 1 | . . . . . . 1 . . . . . . . . . . . . . . . . . . . . . Time 44 | . . . . . . 44 . . . . . . . . . . . . . . . . . . . . . Parts Recycled . | . . . . . . . . . . . . . . . . . . . . . . . . . . . . Recycled Matter . | . . . . . . . . . . . . . . . . . . . . . . . . . . . . Retrieved Matter . | . . . . . . . . . . . . . . . . . . . . . . . . . . . . Retrieved Components 10 | . 10 . . . . . . . . . . . . . . . . . . . . . . . . . . Parts Scanalyzed . | . . . . . . . . . . . . . . . . . . . . . . . . . . . . Part Schematics Acquired . | . . . . . . . . . . . . . . . . . . . . . . . . . . . . Parts Damaged . | . . . . . . . . . . . . . . . . . . . . . . . . . . . . Bothacking | -11 -10 -10 -10 -9 -8 -8 -7 -7 -7 -7 -6 -6 -6 -6 -6 -5 -5 -5 -5 -4 -4 -4 -4 -3 -3 -2 -1 ------------ Run | Yrd Mat Min Exi Min Mat Sto Fac Low Low Zio Pro Fac Low Low Dat Pro Fac Ext Cet Fac Upp Upp War Pro Res Res Acc Used RIF Installer . | . . . . . . . . . . . . . . . . . . . . . . . . . . . . Robots Hacked . | . . . . . . . . . . . . . . . . . . . . . . . . . . . . Non-combat . | . . . . . . . . . . . . . . . . . . . . . . . . . . . . Combat . | . . . . . . . . . . . . . . . . . . . . . . . . . . . . Robot Hacks Applied . | . . . . . . . . . . . . . . . . . . . . . . . . . . . . Relay Couplers Released 1 | . . . . . . . . . . . . . . . . . . . . . . . . . . 1 . Machine Destruction 1 | . . . . . . . . . . . . . . . . . . . . . . . . . . 1 . Fabnet Peak Effective % . | . . . . . . . . . . . . . . . . . . . . . . . . . . . . Robots Rewired 13 | . . . . . . . 1 . . . . . . . . . . 7 . . . . 5 . . . . Allies Hacked . | . . . . . . . . . . . . . . . . . . . . . . . . . . . . Hacks Repelled . | . . . . . . . . . . . . . . . . . . . . . . . . . . . . Allies | -11 -10 -10 -10 -9 -8 -8 -7 -7 -7 -7 -6 -6 -6 -6 -6 -5 -5 -5 -5 -4 -4 -4 -4 -3 -3 -2 -1 -------- Run | Yrd Mat Min Exi Min Mat Sto Fac Low Low Zio Pro Fac Low Low Dat Pro Fac Ext Cet Fac Upp Upp War Pro Res Res Acc Total Allies 33 | . 1 . . 3 . . 2 . . . . . . . . . . 19 . . . . 5 . 3 . . Largest Group 12 | . 1 1 1 3 3 . 1 . . . . . . . . . . 12 8 . . . 5 . 2 . . Highest-Rated Group 345 | . 10 10 10 40 40 . 40 . . . . . . . . . . 345 235 . . . 281 . 36 . . Highest-Rated Ally 64 | . 10 10 10 16 16 . 40 . . . . . . . . . . 39 39 . . . 64 . 26 . . Total Orders 6 | . . . . . . . . . . . . . . . . . . . . . . . 6 . . . . STAY 5 | . . . . . . . . . . . . . . . . . . . . . . . 5 . . . . FOLLOW 1 | . . . . . . . . . . . . . . . . . . . . . . . 1 . . . . Ally Attacks 247 | . . . . . 47 . . . . . . . . . . . . 129 35 . . . 36 . . . . Total Damage 4616 | . . . . . 451 . . . . . . . . . . . . 2317 831 . . . 1017 . . . . Kills 33 | . . . . . 6 . . . . . . . . . . . . 14 5 . . . 8 . . . . Allies Corrupted 1 | . . . . . . . . . . . . . . . . . . . . . . . 1 . . . . Allies Melted 2 | . . . . . . . . . . . . . . . . . . 1 . . . . 1 . . . . Intel | -11 -10 -10 -10 -9 -8 -8 -7 -7 -7 -7 -6 -6 -6 -6 -6 -5 -5 -5 -5 -4 -4 -4 -4 -3 -3 -2 -1 ------- Run | Yrd Mat Min Exi Min Mat Sto Fac Low Low Zio Pro Fac Low Low Dat Pro Fac Ext Cet Fac Upp Upp War Pro Res Res Acc Active Infowar (turns) 16678 | 27 846 510 545 563 2131 1750 683 222 89 145 142 6 147 150 32 189 744 994 413 255 124 157 665 391 786 1550 2422 Optics 12322 | . . . . . 2131 1750 683 1 . . . . . . . . . 994 413 255 124 157 665 391 786 1550 2422 Sensors 1842 | . . . . . . . . 221 89 145 142 6 147 150 32 189 . . . . 74 136 511 . . . . Structural 3431 | . . . . . 1702 1058 590 . . . . . . . . . 81 . . . . . . . . . . Seismic 2491 | 27 846 510 545 563 . . . . . . . . . . . . . . . . . . . . . . . Jamming 3562 | . . . . . . . . . . . . . . . . . 663 . . 104 . . . . 596 1550 649 Robot Analysis Total 2 | . 1 . . . . . . . . . . 1 . . . . . . . . . . . . . . . Derelict Logs Recovered 12 | . . 2 . 1 . . . 2 1 1 . . . 1 . 2 . . . . 1 1 . . . . . Drone Launches . | . . . . . . . . . . . . . . . . . . . . . . . . . . . . Drone Recoveries . | . . . . . . . . . . . . . . . . . . . . . . . . . . . . Exploration | -11 -10 -10 -10 -9 -8 -8 -7 -7 -7 -7 -6 -6 -6 -6 -6 -5 -5 -5 -5 -4 -4 -4 -4 -3 -3 -2 -1 ------------- Run | Yrd Mat Min Exi Min Mat Sto Fac Low Low Zio Pro Fac Low Low Dat Pro Fac Ext Cet Fac Upp Upp War Pro Res Res Acc Turns Passed 19277 | 107 1575 659 545 937 2173 1750 683 222 89 288 148 731 147 150 34 208 898 1158 413 255 124 157 665 391 786 1550 2434 Spaces Moved 23456 | 48 629 241 209 340 902 656 1612 622 329 953 399 1638 240 382 85 445 1199 1335 454 515 263 332 1096 653 1827 3541 2511 Core 17 | 8 . . . . . . . . . . . . . . . . . . . . . . . . . . 9 Treads 1485 | 40 421 . . . . 553 . . . . . . . . . . . . . . . . . . . . 471 Legs 1989 | . 202 241 209 340 902 95 . . . . . . . . . . . . . . . . . . . . . Wheels 6 | . 6 . . . . . . . . . . . . . . . . . . . . . . . . . . Hover . | . . . . . . . . . . . . . . . . . . . . . . . . . . . . Flight 19959 | . . . . . . 8 1612 622 329 953 399 1638 240 382 85 445 1199 1335 454 515 263 332 1096 653 1827 3541 2031 Fastest Speed 21 | 50 140 260 260 260 130 102 25 26 26 26 26 21 21 21 21 21 21 21 26 23 26 26 21 22 22 21 25 Average Speed 51 | 145 209 260 260 260 181 172 25 26 26 26 26 22 21 21 21 21 21 23 26 23 26 26 22 22 26 29 56 Slowest Speed 320 | 160 320 260 260 260 200 320 26 26 26 26 26 23 21 21 21 21 21 26 26 26 26 26 26 22 28 106 300 Overloaded Moves 27 | . . . . . . . . . . . . . . . . . . . . . . . . . . 27 . Propulsion Burnouts . | . . . . . . . . . . . . . . . . . . . . . . . . . . . . Robots Hopped 48 | . . . . . . . 5 2 . . . 5 . . . . 1 7 . . . . 2 . 4 6 16 Potential Cave-ins 2 | . . . . . . . . . . . . . . . . . . . . . . . . . 2 . . Cave-ins Triggered . | . . . . . . . . . . . . . . . . . . . . . . . . . . . . Exploration Rate (%) 59 | 4 89 68 60 64 71 94 55 77 47 82 55 54 37 56 70 59 33 83 72 9 52 61 79 74 50 56 47 Regions Visited 27 Branch Regions 18 Pre-discovered Areas 15 | . 1 . 1 1 . . 1 . . . . 5 . . 1 1 . . . 2 1 . 1 . . . . Known Exits Taken 21 | . 1 . . . 1 1 1 1 1 1 1 1 1 1 1 1 1 1 1 1 1 1 1 . 1 . . Unknown Exits Taken 6 | 1 . 1 1 1 . . . . . . . . . . . . . . . . . . . 1 . 1 . Scrap Searched 25 | . . 1 . . . . . 8 2 4 1 . 2 2 . . . . . . 2 2 . 1 . . . Spaces Dug 273 | . 3 . . 10 . 15 14 14 . . 19 34 . 5 . 9 26 8 . 7 . 4 14 22 23 9 37 Terrain Destroyed 877 | . 12 37 . 72 112 90 14 36 . . 19 35 . 5 . 45 32 39 16 7 . 4 79 29 25 61 108 Melee 180 | . 2 . . . . 4 14 12 . . 16 29 . 5 . 5 18 . . 6 . 2 . 20 13 9 25 Projectile 128 | . 1 . . . . . . 3 . . 3 6 . . . 4 14 14 16 1 . 2 10 9 12 . 33 AOE 569 | . 9 37 . 72 112 86 . 21 . . . . . . . 36 . 25 . . . . 69 . . 52 50 Terrain Rammed . | . . . . . . . . . . . . . . . . . . . . . . . . . . . . Walls Destroyed . | . . . . . . . . . . . . . . . . . . . . . . . . . . . . Machines Disabled . | . . . . . . . . . . . . . . . . . . . . . . . . . . . . Actions | -11 -10 -10 -10 -9 -8 -8 -7 -7 -7 -7 -6 -6 -6 -6 -6 -5 -5 -5 -5 -4 -4 -4 -4 -3 -3 -2 -1 --------- Run | Yrd Mat Min Exi Min Mat Sto Fac Low Low Zio Pro Fac Low Low Dat Pro Fac Ext Cet Fac Upp Upp War Pro Res Res Acc Total 29073 | 67 764 266 213 380 1253 1054 1845 659 332 993 421 1915 329 443 99 534 1768 2086 686 623 314 394 1423 842 2060 4021 3289 Wait 3658 | . 3 11 . 19 160 205 185 5 2 35 . 173 82 57 14 66 470 569 144 61 44 56 175 135 100 420 467 Move 23338 | 47 628 240 208 339 901 655 1602 617 328 952 398 1627 239 381 84 444 1196 1321 453 514 262 331 1091 652 1818 3531 2479 Hop 43 | . . . . . . . 4 2 . . . 5 . . . . 1 6 . . . . 2 . 4 3 16 Pick Up 207 | 5 24 . 1 2 18 11 20 6 1 2 . 7 1 . . . 9 8 9 11 1 . 8 4 25 13 21 Fast Attach 107 | 7 6 1 . . 15 12 2 1 . . . 5 1 . . . 2 7 1 5 . . 6 . 11 5 20 Attach 73 | . 2 . . . 8 7 2 2 . . . 4 . . . 1 3 6 2 . . . 2 2 2 . 30 Detach 33 | . . . . . 3 3 1 1 . . . 1 . . . . 2 4 1 2 . . 3 . 1 . 11 Swap 125 | . 16 8 1 6 11 17 3 4 . 1 3 2 1 . 1 5 5 6 3 1 5 3 7 . 2 4 10 Drop 167 | . 14 1 3 2 23 24 1 2 1 2 . 4 1 . . . 7 7 8 9 1 . 13 1 22 15 6 Fire 863 | 8 68 5 . 12 108 114 . 7 . . 4 19 . . . 11 14 74 65 2 . 1 94 28 22 19 188 Melee 309 | . 3 . . . 6 6 23 12 . 1 16 50 4 5 . 7 41 9 . 18 1 3 . 20 35 11 38 Ram . | . . . . . . . . . . . . . . . . . . . . . . . . . . . . Kick . | . . . . . . . . . . . . . . . . . . . . . . . . . . . . Crush . | . . . . . . . . . . . . . . . . . . . . . . . . . . . . Escape Stasis 90 | . . . . . . . . . . . . 18 . . . . 18 36 . . . . . . 18 . . Rewire 57 | . . . . . . . 2 . . . . . . . . . . 33 . . . . 22 . . . . Trap 3 | . . . . . . . . . . . . . . . . . . . . . . . . . . . 3 Miscellaneous . | . . . . . . . . . . . . . . . . . . . . . . . . . . . . Route ------- -11/Scrapyard -10/Materials (discovered 6 exits: *Mat x3 / *Min x2 / Sub) -10/Mines -10/Exiles -9/Mines -8/Materials (discovered 4 exits: *Fac x3 / *Sto) -8/Storage (discovered 2 exits: *Fac / [*Rec]) -7/Factory (discovered 4 exits: *Fac x2 / *Low x2) -7/Lower Caves -7/Lower Caves -7/Zion (discovered 2 exits: Dee / *Pro) -6/Proximity Caves -6/Factory (discovered 6 exits: *Fac x4 / *Low x2) -6/Lower Caves -6/Lower Caves (discovered 2 exits: Fac / *Dat) -6/Data Miner -5/Proximity Caves -5/Factory (discovered 5 exits: Fac / *Upp x2 / *Ext x2) -5/Extension (discovered 2 exits: *Fac / *Cet) -5/Cetus (discovered 2 exits: *Fac / [*Arc]) -4/Factory -4/Upper Caves -4/Upper Caves -4/Warlord -3/Proximity Caves -3/Research (discovered 5 exits: *Res x3 / *Tes x2) -2/Research -1/Access History --------- Turn | Location | Event 8 | -11/Scrapyard | Discovered new exit (range 15) 108 | -11/Scrapyard | Entered Materials 118 | -10/Materials | Discovered new exit (range 16) 318 | -10/Materials | Build established: Mutant 607 | -10/Materials | Discovered new exit (range 7) 706 | -10/Materials | Identified exit to Mines 746 | -10/Materials | Identified exit to Subcaves 746 | -10/Materials | Identified exit to Materials 800 | -10/Materials | Learned 2 Materials zone layouts 814 | -10/Materials | Learned location of 1 exit from Materials 817 | -10/Materials | Learned location of 3 exits from Materials 854 | -10/Materials | Learned 8 Materials zone layouts 1387 | -10/Materials | Build established: Scavenger-Mutant 1683 | -10/Materials | Entered Mines 1683 | -10/Mines | Accompanied by 1 ally 2303 | -10/Mines | Learned Materials emergency access door positions 2324 | -10/Mines | Deemed a non-threat by the Exiles lab entrance 2324 | -10/Mines | Discovered new exit (range 5) 2342 | -10/Mines | Entered Exiles 2342 | -10/Exiles | Accompanied by 1 ally 2407 | -10/Exiles | Met 8R-AWN 2449 | -10/Exiles | Met EX-HEX 2522 | -10/Exiles | Met EX-BIN 2553 | -10/Exiles | Aligned with FarCom system 2556 | -10/Exiles | Given EX-Vault access code 2615 | -10/Exiles | Opened EX-Vault 2634 | -10/Exiles | Found Lightpack 2.0 2684 | -10/Exiles | Warned to stay clear of 0b10 Research branches 2762 | -10/Exiles | Met EX-DEC 2781 | -10/Exiles | Learned location of Zion (-7) 2853 | -10/Exiles | Discovered new exit (range 14) 2887 | -10/Exiles | Left Exiles lab with Lightpack 2.0 2887 | -10/Exiles | Entered Mines 2887 | -9/Mines | Accompanied by 1 ally 3000 | -9/Mines | A weapon hastily lodged in a ceiling crevice suddenly fell to the ground 3367 | -9/Mines | Excavation squad dispatched 3367 | -9/Mines | A large section of the Mines collapsed 3455 | -9/Mines | Core integrity fell below 50% 3617 | -9/Mines | Excavation squad dispatched 3722 | -9/Mines | Build established: Mutant 3783 | -9/Mines | Discovered new exit (range 4) 3804 | -9/Mines | Assisted by bots powering up and referring to "LRC-V3" 3824 | -9/Mines | Entered Materials 3824 | -8/Materials | Accompanied by 3 allies 3824 | -8/Materials | Evolved 4 slots: Propulsion x1, Utility x3 3825 | -8/Materials | Identified exit to Storage 3826 | -8/Materials | Identified exit to Factory 4137 | -8/Materials | Garrison activated, responded to threat 4190 | -8/Materials | Lost 3 allies 4256 | -8/Materials | Lost 3 parts (2u1w) 4314 | -8/Materials | Garrison activated, responded to threat 4567 | -8/Materials | Build established: Scavenger-Skirmisher 4914 | -8/Materials | Build established: Skirmisher 5997 | -8/Materials | Entered Storage 6091 | -8/Storage | Repaired Imp. Titanium Leg 6242 | -8/Storage | Garrison activated, responded to threat 6509 | -8/Storage | Used back door to open Recycling access 6509 | -8/Storage | Discovered new exit (range 5) 6548 | -8/Storage | Core integrity fell below 50% 6669 | -8/Storage | Discovered exit to Factory (range 18) 6892 | -8/Storage | Build established: Mutant 7551 | -8/Storage | Build established: Scavenger-Skirmisher 7597 | -8/Storage | First assault squad dispatched 7747 | -8/Storage | Entered Factory 7747 | -7/Factory | Evolved 2 slots: Propulsion x2 8108 | -7/Factory | Discovered new exit (range 19) 8137 | -7/Factory | Build established: Hauler-Scout 8172 | -7/Factory | Identified exit to Lower Caves 8224 | -7/Factory | Discovered new exit (range 5) 8430 | -7/Factory | Entered Lower Caves 8452 | -7/Lower Caves | Identified exit to Lower Caves 8464 | -7/Lower Caves | Encountered a Warlord checkpoint 8514 | -7/Lower Caves | Learned Factory machine intel 8652 | -7/Lower Caves | Entered another Lower Caves area 8723 | -7/Lower Caves | Build established: Hauler-Sprinter 8739 | -7/Lower Caves | Discovered new exit (range 5) 8741 | -7/Lower Caves | Identified exit to Zion 8741 | -7/Lower Caves | Entered Zion 8751 | -7/Zion | Visited the Megawrench Repair Shop 8764 | -7/Zion | Discovered new exit (range 16) 8795 | -7/Zion | Identified exit to Deep Caves 8888 | -7/Zion | Found CR-A16's Pointy Stick 8924 | -7/Zion | Rebuked by Imprinter 9007 | -7/Zion | Megawrench repaired 5 parts 9017 | -7/Zion | Identified exit to Proximity Caves 9029 | -7/Zion | Entered Proximity Caves 9124 | -6/Proximity Caves | Attracted the attention of an 0b10 checkpoint 9174 | -6/Proximity Caves | Discovered new exit (range 14) 9177 | -6/Proximity Caves | Identified exit to Factory 9177 | -6/Proximity Caves | Entered Factory 9177 | -6/Factory | Evolved 2 slots: Propulsion x1, Utility x1 9178 | -6/Factory | Loaded intel: 326 machine locations 9204 | -6/Factory | Discovered new exit (range 8) 9206 | -6/Factory | Identified exit to Lower Caves 9301 | -6/Factory | Discovered new exit (range 16) 9457 | -6/Factory | Discovered new exit (range 15) 9539 | -6/Factory | Hacking Suite fried by hacking feedback 9598 | -6/Factory | Identified exit to Factory 9668 | -6/Factory | Learned location of 1 exit from Extension 9747 | -6/Factory | Fabricated Cld. VTOL Module (x1) 9781 | -6/Factory | Learned Hub_04(d) stockpile data 9856 | -6/Factory | Learned location of Proximity Caves (-6) 9908 | -6/Factory | Entered Lower Caves 9911 | -6/Lower Caves | Found DCF Scrap (13 items) 10038 | -6/Lower Caves | Discovered new exit (range 13) 10055 | -6/Lower Caves | Identified exit to Lower Caves 10055 | -6/Lower Caves | Entered another Lower Caves area 10094 | -6/Lower Caves | Entered a destroyed Warlord outpost 10140 | -6/Lower Caves | Encountered a Warlord checkpoint 10142 | -6/Lower Caves | Learned 4 Factory zone layouts 10201 | -6/Lower Caves | Discovered new exit (range 4) 10205 | -6/Lower Caves | Identified exit to Data Miner 10205 | -6/Lower Caves | Entered Data Miner 10205 | -6/Data Miner | Discovered new exit (range 6) 10209 | -6/Data Miner | Met Data Miner 10214 | -6/Data Miner | Learned location of Section 7 (-2) 10214 | -6/Data Miner | Acquired the access code to Warlord's prototype stash 10217 | -6/Data Miner | Received God Mode back door access code from Data Miner 10238 | -6/Data Miner | Identified exit to Proximity Caves 10239 | -6/Data Miner | Entered Proximity Caves 10241 | -5/Proximity Caves | Spotter reported a threat 10242 | -5/Proximity Caves | Spotter reported a threat 10279 | -5/Proximity Caves | Learned location of Warlord (-4) 10279 | -5/Proximity Caves | Learned Factory garrison access intel 10405 | -5/Proximity Caves | Spotter reported a threat 10447 | -5/Proximity Caves | Entered Factory 10447 | -5/Factory | Evolved 2 slots: Utility x2 10448 | -5/Factory | Identified exit to Factory 10448 | -5/Factory | Identified exit to Upper Caves 10450 | -5/Factory | Loaded intel: 4 garrison access locations 10747 | -5/Factory | Search patrols dispatched 10782 | -5/Factory | Fabricated Impulse Thruster (x2) 11018 | -5/Factory | Identified exit to Extension 11336 | -5/Factory | Cargo convoy interrupted 11345 | -5/Factory | Entered Extension 11346 | -5/Extension | Identified exit to Cetus 11610 | -5/Extension | Rescued a captive Derelict 11652 | -5/Extension | Rescued a captive Derelict 11657 | -5/Extension | Rescued a captive Derelict 11657 | -5/Extension | Rescued a captive Derelict 11666 | -5/Extension | Rescued a captive Derelict 11667 | -5/Extension | Rescued a captive Derelict 11672 | -5/Extension | Rescued a captive Derelict 11678 | -5/Extension | Rescued a captive Derelict 11859 | -5/Extension | Spotted B-75 Beast 11944 | -5/Extension | Spotted B-75 Beast 11959 | -5/Extension | Allies destroyed B-75 Beast 11976 | -5/Extension | Allies destroyed B-75 Beast 12001 | -5/Extension | Lost 6 allies 12009 | -5/Extension | Energy Cycler disabled 12010 | -5/Extension | Rescued a captive Derelict 12010 | -5/Extension | Rescued a captive Derelict 12010 | -5/Extension | Rescued a captive Derelict 12010 | -5/Extension | Rescued a captive Derelict 12014 | -5/Extension | Rescued a captive Derelict 12018 | -5/Extension | Rescued a captive Derelict 12025 | -5/Extension | Rescued a captive Derelict 12089 | -5/Extension | Lost 5 allies 12206 | -5/Extension | Discovered exit to Factory (range 10) 12207 | -5/Extension | Extracted ID and sensor layout for unrecognized location from A7's data core 12503 | -5/Extension | Entered Cetus 12503 | -5/Cetus | Accompanied by 8 allies 12507 | -5/Cetus | Spotted Cetus Guard 12507 | -5/Cetus | Spotted Cetus Guard 12515 | -5/Cetus | Spotted Cetus Guard 12515 | -5/Cetus | Spotted Cetus Guard 12516 | -5/Cetus | Allies destroyed Cetus Guard 12518 | -5/Cetus | Allies destroyed Cetus Guard 12528 | -5/Cetus | Destroyed Cetus Guard 12537 | -5/Cetus | Allies destroyed Cetus Guard 12613 | -5/Cetus | Discovered new exit (range 19) 12665 | -5/Cetus | Spotted Cetus Guard 12665 | -5/Cetus | Spotted Cetus Guard 12665 | -5/Cetus | Spotted Cetus Guard 12665 | -5/Cetus | Spotted Cetus Guard 12679 | -5/Cetus | Destroyed Cetus Guard 12704 | -5/Cetus | Destroyed Cetus Guard 12737 | -5/Cetus | Lost 6 allies 12781 | -5/Cetus | Destroyed Cetus Guard 12796 | -5/Cetus | Destroyed Cetus Guard 12826 | -5/Cetus | Discovered exit to Factory (range 20) 12829 | -5/Cetus | Met Revision 17 12916 | -5/Cetus | Entered Factory 12916 | -4/Factory | Evolved 2 slots: Power x1, Propulsion x1 13010 | -4/Factory | Discovered new exit (range 13) 13157 | -4/Factory | Identified exit to Upper Caves 13171 | -4/Factory | Entered Upper Caves 13286 | -4/Upper Caves | Learned location of Testing (-3) 13293 | -4/Upper Caves | Discovered new exit (range 6) 13294 | -4/Upper Caves | Identified exit to Upper Caves 13295 | -4/Upper Caves | Entered another Upper Caves area 13297 | -4/Upper Caves | Learned Research stockpile data 13424 | -4/Upper Caves | Encountered a Warlord checkpoint 13439 | -4/Upper Caves | Discovered new exit (range 5) 13443 | -4/Upper Caves | Identified exit to Warlord 13452 | -4/Upper Caves | Entered Warlord 13462 | -4/Warlord | Discovered new exit (range 12) 13470 | -4/Warlord | System corruption cleaned by Quarantine Array 13530 | -4/Warlord | Opened Warlord's prototype stash 13533 | -4/Warlord | Found Prototype Hackware 13534 | -4/Warlord | Found Prototype Processor 13539 | -4/Warlord | Found Prototype Device 13539 | -4/Warlord | Identified Exp. Phase Shifter 13557 | -4/Warlord | Learned 4 Command zone layouts 13557 | -4/Warlord | Learned 4 Testing zone layouts 13557 | -4/Warlord | Learned 4 Armory zone layouts 13557 | -4/Warlord | Learned Factory fabricator intel 13557 | -4/Warlord | Learned Armory fabricator intel 13557 | -4/Warlord | Learned Research recycling unit intel 13600 | -4/Warlord | Met Warlord 13618 | -4/Warlord | Visited the Vortex Lab 13620 | -4/Warlord | Found Prototype Piercing Weapon 13621 | -4/Warlord | Found Prototype Piercing Weapon 13623 | -4/Warlord | Found Prototype Launcher 13625 | -4/Warlord | Warlord's base attacked by MAIN.C 13872 | -4/Warlord | Build established: Trapper-Scout 13944 | -4/Warlord | Spotted B-90 Cyclops 13975 | -4/Warlord | Warlord forces counterattacked 14018 | -4/Warlord | Spotted Executioner 14023 | -4/Warlord | Spotted Executioner 14079 | -4/Warlord | Spotted Striker 14081 | -4/Warlord | Spotted Striker 14082 | -4/Warlord | Found Prototype Ballistic Cannon 14117 | -4/Warlord | Identified exit to Proximity Caves 14117 | -4/Warlord | Entered Proximity Caves 14128 | -3/Proximity Caves | Lost 23 allies 14144 | -3/Proximity Caves | Destroyed 11 combat bots 14222 | -3/Proximity Caves | Spotted B-86 Titan 14361 | -3/Proximity Caves | Build established: Trapper-Sprinter 14439 | -3/Proximity Caves | Attracted the attention of an 0b10 checkpoint 14504 | -3/Proximity Caves | Discovered new exit (range 19) 14508 | -3/Proximity Caves | Entered Research 14508 | -3/Research | Evolved 2 slots: Utility x2 14510 | -3/Research | Loaded intel: 5 recycling unit locations 14511 | -3/Research | Identified Ghost Barrier 14519 | -3/Research | Found Fusion Bomb Launcher 14658 | -3/Research | Identified exit to Testing 14658 | -3/Research | Identified exit to Research 14708 | -3/Research | Revision forces began assault on 0b10 14969 | -3/Research | Spotted B-86 Titan 15117 | -3/Research | Found Prototype Processor 15117 | -3/Research | Identified Exp. Targeting Computer 15208 | -3/Research | Research terminal network offline 15294 | -3/Research | Entered another Research area 15294 | -2/Research | Warlord forces began assault on 0b10 15294 | -2/Research | Evolved 2 slots: Propulsion x1, Utility x1 15404 | -2/Research | Research machine network offline 15518 | -2/Research | Met up with Warlord 15723 | -2/Research | Borebot progress halted 15786 | -2/Research | Borebot progress halted 15927 | -2/Research | Borebot progress halted 16004 | -2/Research | Lost 9 allies 16018 | -2/Research | Spotted Striker 16045 | -2/Research | Spotted Striker 16045 | -2/Research | Spotted Executioner 16073 | -2/Research | Spotted Executioner 16086 | -2/Research | Lost 8 allies 16119 | -2/Research | Met DD-05H 16173 | -2/Research | Spotted Executioner 16392 | -2/Research | Discovered new exit (range 4) 16552 | -2/Research | Met PL-HR7 16701 | -2/Research | Spotted Striker 16717 | -2/Research | Spotted Striker 16726 | -2/Research | Spotted Executioner 16731 | -2/Research | Destroyed Executioner 16776 | -2/Research | Lost 3 allies 16798 | -2/Research | Given Cave Seal Controls access code 16844 | -2/Research | Entered Access 16844 | -1/Access | Evolved 2 slots: Power x1, Utility x1 16858 | -1/Access | Found Gamma Bomb Array 16973 | -1/Access | Lost 5 allies 17159 | -1/Access | Build established: Hacker-Sprinter 17500 | -1/Access | Garrison activated, responded to threat 17543 | -1/Access | Lost 4 parts (2u2w) 17544 | -1/Access | Destroyed 7 combat bots 17554 | -1/Access | Spotted B-99 Colossus 17620 | -1/Access | Identified Vortex Lance 17640 | -1/Access | Lost 8 parts (2p3n1u2w) 17660 | -1/Access | Ghost Barrier fried by hacking feedback 17844 | -1/Access | Search patrols dispatched 17889 | -1/Access | Garrison activated, responded to threat 17912 | -1/Access | System corruption reached 10% 18055 | -1/Access | Core integrity fell below 50% 18067 | -1/Access | Identified Hvy. Autocannon 18094 | -1/Access | First assault squad dispatched 18111 | -1/Access | Incoming assault squad redirected 18121 | -1/Access | Incoming assault squad redirected 18127 | -1/Access | Build established: Trapper-Mutant 18367 | -1/Access | Incoming assault squad redirected 18619 | -1/Access | Incoming assault squad redirected 18859 | -1/Access | Incoming assault squad redirected 19122 | -1/Access | Incoming assault squad redirected 19177 | -1/Access | Lost 13 parts (2p5n3u3w) 19183 | -1/Access | Incoming investigation squad redirected 19214 | -1/Access | Spotted B-99 Colossus 19239 | -1/Access | Lost 3 parts (3n) 19264 | -1/Access | Core integrity fell below 20% 19274 | -1/Access | Released all parts (7) 19278 | -1/Access | Destroyed by S-43 Plague with Heavy Machine Gun Last Messages --------------- 19258_ Acquired 84 matter. 19260_ D E=L YUPN WWR,SEAWY TPHYJH#X>= 19260_ Xenon Bombardment Thruster destroyed. 19260_ Cld. Nuclear Pulse Thruster destroyed. 19261_ Dropped Mic. Antimatter Reactor. 19262_ Slug penetrates Wall. 19266_ Adv. Visual Processing Unit destroyed. 19269_ Slug penetrates Wall. 19271_ Impulse Thruster Array destroyed. 19273_ Lightpack 2.0 destroyed. 19274_ Released Adv. Target Analyzer. 19274_ Released Imp. Target Analyzer. 19274_ Released Weapon Mount. 19274_ Released Graphene Brace. 19274_ Released Adv. Weapon Cycler. 19274_ Released Coolant Injector. 19274_ Released Adv. Trap Extractor. 19276_ Slug penetrates Wall. 19276_ Penetrated by Slug. 19277_ Slug penetrates Wall. Map ----- +----------------------------------------------------+ | ????????????????# #????# # """" | | ????????????????# #????# ] # | | ????????????????# % #????# | | ????????????????# #????# / ] ## | | ???????????###### #????#######+### # | | ???????????# + #????????# = | | ??????????## #### #????????# | | ??????????#" " ## #????????# | | ??????????#"=" ####""+####????????# % = | | ??????????#" " #??# #?????????######## | | ??????????#"["##### #??????????##### # | | ??????????## ^p= #??????????# | | ???????????# ######= #??????????# | | #+##+####### #????# #??????????# / | | * #????##p ###########?# # | | ########## # #?# ! ! #% ## | | # BB + ! #?# # ## | | " BB # #?# ! # | | #### " # #?# # | | #???? = # #? #?############### | | ##???? # #? #???????????????? | | #??????h # #?? #???????????????? | | #??????? # "?? #???????????????? | | " #???????#"####! ###############???????????? | | " #########=####* t g ?????? | | g s !!]=|!**! @ k ?????? | | s s*!*!#################### ?????? | | s !!/=#??????????????????????????????? | | *=!#??????????????????????????????? | | !#??????????????????????????????? | | #??????????????????????????????? | | #+#################?????????????????????????????? | | ????????????????????????????????????????????????? | | ???????????????????????????????????????????????? | | ???????????????????????????????????????????????? | | ?????????????????????????????????????????????????? | | ?????????????????????????????????????????????????? | | ?????????????????????????????????????????????????? | | ?????????????????????????????????????????????????? | | ?????????????????????????????????????????????????? | | ????????????????????????????????????????????????? | | ?????????????????????????????????????????????????? | | ?????????????????????????????????????????????????? | | ?????????????????????????????????????????????????? | | ?????????????????????????????????????????????????? | | ?????????????????????????????????????????????????? | | ?????????????????????????????????????????????????? | | ?????????????????????????????????????????????????? | | ?????????????????????????????????????????????????? | | ?????????????????????????????????????????????????? | +----------------------------------------------------+ Best States ------------- Heat Dissipation 90 Coolant Potential 65 Energy Generation 53 Energy Capacity 430 Matter Stores 300 Matter Capacity 300 Sight Range 20 Robot Scan Range 16 Terrain Scan Density 10 Jamming Range 14 Base Temperature (-) 200 Armor Coverage 600 Core Shielding 20 Weapon Cycling 25 Phase Shifting 20 Evasion (%) 74 Targeting Accuracy 28 Target Analysis 11 Recoil Reduction 8 Offensive Hacking 28 Defensive Hacking 20 Trap Extractor Capacity 8 Item Schematics ----------------- Nuclear Pulse Thruster | -8/Storage | Hacked Enh. Optical Array | -7/Factory | Hacked Corruption Screen | -7/Zion | Archive Imp. Cryofiber Web | -7/Zion | Archive Gauss Cannon | -7/Zion | Archive Adv. Signal Interpreter | -7/Zion | Archive Hvy. Ion Cannon | -7/Zion | Archive Point Defense System | -7/Zion | Archive Imp. Component Analysis Suite | -7/Zion | Archive Med. Treads | -7/Zion | Archive Arm. Leg | -7/Zion | Archive Arm. Huge Wheel | -7/Zion | Archive Hvy. Plasma Cannon | -7/Zion | Archive Hvy. Missile Launcher | -7/Zion | Archive Power Amplifier | -7/Zion | Archive Greatsword | -7/Zion | Archive Cld. VTOL Module | -6/Factory | Hacked Thermic Laser | -6/Factory | Hacked Combat Drone Bay | -6/Data Miner | Free Lgt. Regenerative Plating | -6/Data Miner | Free Cld. Nuclear Pulse Thruster | -6/Data Miner | Free Imp. Matter Compressor | -6/Data Miner | Free Neutron Cannon | -6/Data Miner | Free Imp. Heavy Treads | -6/Data Miner | Free Imp. Force Booster | -6/Data Miner | Free Variable Charge Gun | -6/Data Miner | Free Imp. Gyrokinetic Inverter | -6/Data Miner | Free Hyp. Mass Driver | -6/Data Miner | Free Mic. Antimatter Reactor | -6/Data Miner | Free Adv. Point Defense System | -5/Extension | Hacked Adv. Force Field | -5/Extension | Hacked Hvy. Shield Leg | -3/Research | Hacked Robot Schematics ------------------ Y-54 Guardian | -7/Zion | Archive K-01 Serf | -7/Zion | Archive M-14 Sweeper | -7/Zion | Archive G-73 Enforcer | -7/Zion | Archive B-48 Gladiator | -6/Data Miner | Free S-27 Virus | -6/Data Miner | Free B-60 Warrior | -6/Data Miner | Free A-15 Conveyor | -6/Data Miner | Free L-61 Swordsman | -6/Data Miner | Free O-32 Director | -6/Data Miner | Free Fabricated ------------ Cld. VTOL Module | x1 | -6/Factory Impulse Thruster | x2 | -5/Factory | Preloaded Repaired ---------- Imp. Titanium Leg | 41% | -8/Storage Alien Tech Used ----------------- None Achievements -------------- None Challenges ------------ None Game ------ Seed DataLightningSlayer Manual? 0 Play Time 05:34:46 Cumulative 309.2 hours Start 2025.08.24 @ 06:53:06 End 2025.08.25 @ 21:24:47 Sessions 7 Manual Loads 0 Difficulty Rogue Special Mode None Game No. 132 Rogue 111 Adventurer 21 Explorer 0 Win Type - Total 13 Types 9/0/3/1/0/0/0/0/0/0 Lore% 50 Gallery% 68 Achievement% 62 Wizard Run 0 Options --------- Layout 1 ASCII 0 Keyboard 0 Movement Mouse Keybinds 0 Fullscreen 2 Font 32/SmallcapsGlow Map View 77x35 Zoom Use 0% Tactical HUD 1 Map Filters NONE Filters NONE Steam 1 RUN: a8bd836a-4b66-4dee-9302-70b1d395b151